bitfinex/quotes_ETHUSD_20240607
["timestamp","ask_amount","ask_price","bid_price","bid_amount"]
[1717735405196,2.12395132,3814.6,3813.7,2.3192]
[1717735405357,2.12395132,3814.6,3814.2,0.784]
[1717735405854,2.12395132,3814.6,3814.3,0.13311361]
[1717735406517,2.69057379,3814.6,3814.3,0.13311361]
[1717735406742,2.12395132,3814.6,3814.3,0.13311361]
[1717735407226,0.55,3814.6,3814.3,0.13311361]
[1717735407560,2.12394021,3814.6,3814.3,0.13311361]
[1717735408554,2.69055868,3814.6,3814.3,0.13311361]
[1717735408855,2.12394021,3814.6,3814.3,0.13311361]
[1717735409964,2.69055868,3814.6,3814.3,0.13311361]
[1717735410363,2.12394021,3814.6,3814.3,0.13311361]
[1717735410769,2.62157,3814.5,3814.3,0.13311361]
[1717735410941,2.3913,3814.3,3813.8,0.784]
[1717735411270,3.96524021,3814.3,3813.9,0.13310128]
[1717735411432,2.12394021,3814.2,3813.9,0.13310128]
[1717735411873,2.12394021,3814.2,3813.9,0.91710128]
[1717735412169,2.12394021,3814.2,3813.9,0.784]
[1717735412528,0.55,3814.2,3813.9,0.784]
[1717735412730,2.12412421,3814.2,3813.9,0.784]
[1717735413328,0.55,3814.2,3813.9,0.784]
[1717735414148,0.55,3814.2,3813.3,2.2835]
[1717735414351,0.55,3814.2,3814.0,0.784]
[1717735415370,1.57411309,3814.3,3814.0,0.784]
[1717735415575,1.57411309,3814.4,3814.2,0.784]
[1717735415741,4.19568309,3814.5,3814.2,0.784]
[1717735415946,2.62157,3814.5,3814.2,0.784]
[1717735416173,4.19568309,3814.5,3814.2,0.784]
[1717735416378,2.62157,3814.5,3814.2,0.784]
[1717735416887,0.55,3814.4,3814.2,0.784]
[1717735421154,0.55,3814.4,3814.3,0.13319094]
[1717735421490,0.55,3814.6,3814.3,0.13319094]
[1717735421783,0.55,3814.7,3814.4,0.784]
[1717735421961,2.12411309,3814.7,3814.4,0.784]
[1717735422162,0.55,3814.7,3814.4,0.784]
[1717735425095,0.55,3814.7,3814.5,0.784]
[1717735426696,2.12411309,3814.7,3814.5,0.784]
[1717735428666,0.55,3814.7,3814.5,0.784]
[1717735428870,2.12411309,3814.7,3814.5,0.784]
[1717735429076,1.57411309,3814.7,3814.5,0.784]
[1717735429280,0.55,3814.6,3814.5,0.784]
[1717735429761,0.55,3814.7,3814.5,0.784]
[1717735435673,0.55,3814.7,3814.3,2.2546]
[1717735435871,0.55,3814.7,3814.6,0.784]
[1717735437975,0.55,3814.8,3814.6,0.784]
[1717735440973,0.55,3814.8,3814.7,0.12871431]
[1717735442114,0.55,3814.9,3814.7,0.12871431]
[1717735442313,0.55,3815.0,3814.8,0.784]
[1717735442895,0.55,3815.1,3814.8,0.784]
[1717735443292,2.12411309,3815.1,3814.8,0.784]
[1717735443708,0.55,3815.1,3814.8,0.784]
[1717735444388,2.12411309,3815.1,3814.8,0.784]
[1717735445908,0.55,3815.1,3814.8,0.784]
[1717735449625,2.12368614,3815.2,3814.8,0.784]
[1717735451422,2.12369325,3815.2,3814.8,0.784]
[1717735456822,2.62136,3814.9,3814.0,5.05428]
[1717735457022,0.55,3814.8,3814.5,0.784]
[1717735457542,0.55,3814.8,3814.6,0.12860304]
[1717735458013,0.55,3814.8,3814.5,0.784]
[1717735458223,2.12369325,3814.8,3814.5,0.784]
[1717735458437,2.12369325,3814.8,3814.6,0.12851337]
[1717735460391,2.62143,3814.7,3814.6,0.12851337]
[1717735460730,3.17143,3814.7,3814.6,0.12851337]
[1717735465536,3.17143,3814.7,3814.5,0.784]
[1717735465736,0.55,3814.6,3814.5,0.784]
[1717735468166,0.55,3814.6,3814.1,0.24324]
[1717735468323,0.55,3814.6,3814.4,0.784]
[1717735468725,0.55,3814.6,3814.0,2.4324]
[1717735468937,0.55,3814.6,3814.4,0.784]
[1717735479201,0.55,3814.6,3814.0,2.67564]
[1717735479382,0.55,3814.6,3814.5,0.12861537]
[1717735479586,0.55,3814.6,3814.3,0.784]
[1717735484800,2.62158,3814.5,3813.7,2.3563]
[1717735485015,0.55,3814.4,3814.1,0.784]
[1717735485218,2.12390259,3814.4,3814.1,0.784]
[1717735485418,2.12390259,3814.4,3813.7,2.90895186]
[1717735485712,2.12390259,3814.4,3814.2,0.91261847]
[1717735485925,0.55,3814.4,3814.2,0.784]
[1717735486085,0.55,3814.4,3814.3,0.12861847]
[1717735486488,0.55,3814.4,3814.2,0.784]
[1717735486906,0.55,3814.4,3814.3,0.12861847]
[1717735487104,2.1240176,3814.4,3814.2,0.784]
[1717735487411,2.1240176,3814.4,3814.3,0.12861847]
[1717735487813,2.1240176,3814.4,3813.7,2.3563]
[1717735488017,2.1240176,3814.4,3814.1,0.784]
[1717735488725,2.1240176,3814.4,3814.2,0.12861847]
[1717735490824,2.12403706,3814.4,3814.2,0.12861847]
[1717735492684,2.12403706,3814.4,3814.2,0.784]
[1717735493181,2.12403706,3814.4,3814.3,0.12861847]
[1717735493625,2.12403706,3814.4,3814.2,0.784]
[1717735493926,2.12403706,3814.4,3814.3,0.12870813]
[1717735494126,2.12403706,3814.4,3814.2,0.784]
[1717735494436,2.12403706,3814.4,3814.3,0.12870813]
[1717735494931,2.12403706,3814.4,3814.2,0.784]
[1717735495100,2.62172,3814.3,3813.7,2.3563]
[1717735495291,0.55,3814.2,3814.1,0.784]
[1717735496249,0.55,3814.2,3813.7,2.3563]
[1717735496447,0.55,3814.2,3814.1,0.784]
[1717735500483,0.55,3814.2,3813.3,2.4694]
[1717735500980,0.55,3814.2,3814.0,0.784]
[1717735501187,0.55,3814.2,3813.4,0.12870813]
[1717735501188,1.26593075,3814.2,3813.4,0.12870813]
[1717735501340,1.26593075,3814.2,3813.1,2.4446]
[1717735501341,2.62209,3813.8,3813.1,2.4446]
[1717735501538,2.62209,3813.8,3813.4,0.784]
[1717735501737,0.55,3813.7,3813.5,0.12898948]
[1717735502357,0.55,3813.7,3813.4,0.784]
[1717735503257,0.55,3813.7,3813.1,2.4446]
[1717735503445,0.55,3813.7,3813.5,0.784]
[1717735504070,0.55,3813.7,3813.6,0.12898948]
[1717735507145,1.57418692,3814.1,3813.6,2.39868948]
[1717735507351,3.18850729,3814.2,3814.0,0.784]
[1717735507586,2.6218,3814.2,3814.0,0.784]
[1717735507946,2.6218,3814.2,3814.1,0.12913175]
[1717735508815,0.55,3814.2,3814.0,0.784]
[1717735509098,0.55,3814.1,3814.0,0.784]
[1717735509447,0.55,3814.2,3814.0,0.784]
[1717735509667,0.55,3814.2,3814.1,0.784]
[1717735510068,0.55,3814.2,3813.6,2.2697]
[1717735510267,0.55,3814.2,3814.1,0.784]
[1717735510850,0.55,3814.2,3814.1,0.91313175]
[1717735513312,0.55,3814.5,3814.1,0.91313175]
[1717735513799,0.55,3814.5,3814.1,0.784]
[1717735515351,0.55,3814.5,3813.6,2.49667]
[1717735515502,0.55,3814.5,3814.1,0.784]
[1717735523555,2.12418692,3814.5,3814.1,0.784]
[1717735524052,0.55,3814.5,3814.1,0.784]
[1717735524838,2.12418692,3814.5,3814.1,0.784]
[1717735525040,0.55,3814.5,3814.1,0.784]
[1717735532676,2.12418692,3814.5,3814.1,0.784]
[1717735534182,2.12401807,3814.5,3814.1,0.784]
[1717735535372,1.57401807,3814.4,3814.1,0.784]
[1717735535581,0.55,3814.3,3814.1,0.784]
[1717735536776,0.55,3814.4,3814.1,0.784]
[1717735537579,2.12401807,3814.4,3814.1,0.784]
[1717735538478,2.69066457,3814.4,3814.1,0.784]
[1717735538840,2.12401807,3814.4,3814.1,0.784]
[1717735539176,2.69066457,3814.4,3814.1,0.784]
[1717735539482,2.12401807,3814.4,3814.1,0.784]
[1717735539663,2.69066457,3814.4,3814.1,0.784]
[1717735539863,2.12401807,3814.4,3814.1,0.784]
[1717735540073,2.69066457,3814.4,3814.1,0.784]
[1717735540274,2.12401807,3814.4,3814.1,0.784]
[1717735542281,2.1239668,3814.4,3814.1,0.784]
[1717735543799,2.12394628,3814.4,3814.1,0.784]
[1717735544588,2.12394628,3814.4,3814.3,0.784]
[1717735544945,2.12394628,3814.4,3814.3,0.91304514]
[1717735546679,0.55,3814.4,3814.3,0.91304514]
[1717735549386,0.55,3814.4,3814.3,0.784]
[1717735552565,0.55,3814.6,3814.3,0.784]
[1717735552900,0.55,3814.6,3814.5,0.784]
[1717735553591,0.55,3814.7,3814.5,0.784]
[1717735554377,1.07095664,3814.7,3814.4,0.784]
[1717735554784,1.63753401,3814.7,3814.4,0.784]
[1717735554979,1.57394628,3814.6,3814.4,0.784]
[1717735555179,0.55,3814.5,3814.4,0.784]
[1717735557368,2.12394628,3814.5,3813.7,5.0679]
[1717735557570,2.12394628,3814.5,3814.2,0.784]
[1717735557867,2.2757,3814.4,3814.2,0.784]
[1717735558072,0.55,3814.3,3814.2,0.784]
[1717735563529,0.55,3814.3,3813.7,5.0679]
[1717735563720,0.55,3814.3,3814.1,0.784]
[1717735564177,0.55,3814.3,3814.2,0.12895239]
[1717735564975,0.55,3814.3,3814.1,0.784]
[1717735565177,0.55,3814.3,3814.2,0.12895239]
[1717735567720,1.57398818,3814.4,3814.2,2.45765239]
[1717735568050,1.57398818,3814.5,3814.3,0.784]
[1717735568199,0.55,3814.4,3814.3,0.784]
[1717735568402,0.55,3814.4,3814.3,0.91295239]
[1717735568723,0.55,3814.5,3814.3,0.91295239]
[1717735568929,1.57398818,3814.4,3814.3,0.91295239]
[1717735569086,2.12398818,3814.4,3814.3,0.91295239]
[1717735569277,2.12399002,3814.4,3814.3,0.91295239]
[1717735570424,2.12399002,3814.4,3814.3,0.12895239]
[1717735570582,2.65519966,3814.4,3814.3,0.12895239]
[1717735574219,2.12399002,3814.4,3814.3,0.12895239]
[1717735575628,0.55,3814.4,3814.3,0.12895239]
[1717735575802,1.5740116,3814.4,3814.3,0.12895239]
[1717735576126,2.1240116,3814.4,3814.3,0.12895239]
[1717735577330,0.55,3814.4,3814.3,0.12895239]
[1717735577535,1.57402788,3814.4,3814.3,0.12895239]
[1717735577829,2.12402788,3814.4,3814.3,0.12895239]
[1717735578794,2.12402788,3814.4,3813.7,2.4647]
[1717735579108,0.55,3814.3,3813.8,0.12895545]
[1717735579697,2.12402788,3814.3,3814.1,0.784]
[1717735580418,2.90129367,3814.3,3814.1,0.784]
[1717735582230,1.32726579,3814.3,3814.1,0.784]
[1717735582434,2.90129367,3814.3,3814.1,0.784]
[1717735582619,2.12402788,3814.3,3814.1,0.784]
[1717735582795,1.57402788,3814.2,3814.1,0.784]
[1717735583001,2.12402788,3814.2,3814.1,0.784]
[1717735583195,2.12402788,3814.2,3813.7,2.4647]
[1717735583397,0.55,3814.1,3814.0,0.784]
[1717735583797,0.55,3814.1,3814.0,0.91299565]
[1717735585402,1.08124687,3814.1,3814.0,0.12899565]
[1717735585619,1.08124687,3814.1,3813.7,0.784]
[1717735585620,2.6553562,3814.1,3813.7,0.784]
[1717735585816,4.74597933,3814.1,3814.0,0.12909463]
[1717735586037,4.74597933,3814.1,3813.7,0.784]
[1717735586245,4.74597933,3814.1,3814.0,0.12909463]
[1717735586416,4.74597933,3814.1,3813.9,0.784]
[1717735590561,4.74597933,3814.1,3813.4,2.3105]
[1717735590774,4.74597933,3814.1,3813.8,0.784]
[1717735590964,5.45720726,3814.1,3813.8,0.784]
[1717735592043,1.57410933,3814.0,3813.8,0.784]
[1717735592259,0.55,3813.9,3813.8,0.784]
[1717735592737,0.55,3814.0,3813.8,0.784]
[1717735594431,2.12410933,3814.0,3813.8,0.784]
[1717735595365,2.12410933,3814.0,3813.6,0.784]
[1717735595366,2.62199,3813.9,3813.6,0.784]
[1717735595566,0.55,3813.8,3813.6,0.784]
[1717735595729,0.55,3813.8,3813.7,0.12909463]
[1717735596063,0.55,3813.8,3813.6,0.784]
[1717735596364,0.55,3813.8,3813.7,0.12909463]
[1717735596866,0.55,3813.8,3813.7,0.12916886]
[1717735598133,1.02460993,3813.8,3813.7,0.12916886]
[1717735598333,2.6222,3813.6,3813.3,0.784]
[1717735598535,0.55,3813.5,3813.3,0.784]
[1717735618947,0.55,3813.5,3812.5,2.4777]
[1717735619236,0.55,3813.5,3813.4,0.12925546]
[1717735619546,0.55,3813.5,3813.2,0.784]
[1717735619842,0.55,3813.5,3813.4,0.12922143]
[1717735620042,0.55,3813.5,3813.2,0.784]
[1717735620402,0.55,3813.5,3813.3,0.12922143]
[1717735620819,0.55,3813.5,3813.2,0.784]
[1717735621349,2.12437338,3813.5,3813.3,0.12922143]
[1717735621520,2.12437338,3813.5,3813.2,0.784]
[1717735623445,2.1244409,3813.5,3813.2,0.784]
[1717735624661,2.1244409,3813.5,3813.3,0.12936989]
[1717735625063,2.1244409,3813.5,3813.2,0.784]
[1717735625451,2.1244409,3813.5,3813.4,0.12936989]
[1717735625652,2.1244409,3813.5,3813.2,0.784]
[1717735625653,0.55,3813.5,3813.2,0.784]
[1717735625964,0.55,3813.5,3813.3,0.12936989]
[1717735626166,1.57445084,3813.4,3813.3,0.12936989]
[1717735626366,2.12445084,3813.4,3813.2,0.784]
[1717735626570,2.12445084,3813.4,3813.3,0.12936989]
[1717735626930,2.12445084,3813.4,3813.2,0.784]
[1717735627131,2.12445084,3813.4,3813.3,0.12936989]
[1717735627361,2.12445084,3813.4,3813.2,0.784]
[1717735627567,0.55,3813.3,3813.2,0.784]
[1717735628969,0.55,3813.3,3813.2,0.91339773]
[1717735629638,0.55,3813.4,3813.2,0.91339773]
[1717735633100,2.12445084,3813.4,3813.2,0.91339773]
[1717735634275,0.55,3813.4,3813.2,0.91339773]
[1717735636474,2.12445084,3813.4,3813.2,0.91339773]
[1717735636859,2.12442704,3813.4,3813.2,0.91339773]
[1717735638613,2.1244308,3813.4,3813.2,0.91339773]
[1717735639978,0.55,3813.4,3813.2,0.91339773]
[1717735640503,2.12443761,3813.4,3813.2,0.91339773]
[1717735641703,2.69124527,3813.4,3813.2,0.91339773]
[1717735641903,2.12444505,3813.4,3813.2,0.91339773]
[1717735643405,2.69124527,3813.4,3813.2,0.91339773]
[1717735643765,2.12444505,3813.4,3813.2,0.91339773]
[1717735644363,2.69124527,3813.4,3813.2,0.91339773]
[1717735644593,2.12444505,3813.4,3813.2,0.91339773]
[1717735644801,2.69124527,3813.4,3813.2,0.91339773]
[1717735644961,2.12444505,3813.4,3813.2,0.91339773]
[1717735645167,2.69124527,3813.4,3813.2,0.91339773]
[1717735645398,2.12446177,3813.4,3813.2,0.91339773]
[1717735645607,2.691268,3813.4,3813.2,0.91339773]
[1717735645788,2.12446177,3813.4,3813.2,0.91339773]
[1717735646036,2.691268,3813.4,3813.2,0.91339773]
[1717735646194,2.12446177,3813.4,3813.2,0.91339773]
[1717735649810,0.55,3813.4,3813.2,0.91339773]
[1717735653413,2.12446177,3813.4,3813.2,0.91339773]
[1717735654993,2.691268,3813.4,3813.2,0.91339773]
[1717735655193,2.12446177,3813.4,3813.2,0.91339773]
[1717735655406,2.691268,3813.4,3813.2,0.12939773]
[1717735655620,2.12446177,3813.4,3813.2,0.784]
[1717735655796,2.691268,3813.4,3813.3,0.1294194]
[1717735656016,2.12446177,3813.4,3813.2,0.784]
[1717735656191,2.691268,3813.4,3813.2,0.784]
[1717735656398,2.12446177,3813.4,3813.3,0.1294194]
[1717735656598,2.12446177,3813.4,3813.2,0.784]
[1717735656900,2.12446177,3813.4,3813.3,0.1294194]
[1717735657222,2.691268,3813.4,3813.2,0.784]
[1717735657425,1.57446177,3813.3,3813.2,0.784]
[1717735657623,2.12446177,3813.3,3813.2,0.784]
[1717735657920,0.55,3813.3,3813.2,0.784]
[1717735658879,0.55,3813.3,3813.2,0.9134194]
[1717735667430,0.55,3813.3,3813.2,3.2800194]
[1717735667633,0.55,3813.4,3813.2,3.2800194]
[1717735667807,0.55,3813.5,3813.3,0.784]
[1717735668008,0.55,3813.5,3813.3,0.91338226]
[1717735669047,0.55,3813.5,3813.3,0.12938226]
[1717735669254,0.55,3813.5,3813.4,0.784]
[1717735669422,2.12435047,3813.5,3813.4,0.784]
[1717735669614,2.12435047,3813.5,3813.4,0.91338226]
[1717735670151,2.69111664,3813.5,3813.4,0.91338226]
[1717735670629,2.12435047,3813.5,3813.4,0.91338226]
[1717735671014,2.69111664,3813.5,3813.4,0.91338226]
[1717735671845,2.12435047,3813.5,3813.4,0.91338226]
[1717735672046,2.69111664,3813.5,3813.4,0.91338226]
[1717735673837,2.12435047,3813.5,3813.4,0.91338226]
[1717735674473,0.55,3813.5,3813.4,0.91338226]
[1717735674613,0.55,3813.5,3813.4,3.23928226]
[1717735674955,0.55,3813.6,3813.4,3.23928226]
[1717735675254,0.56676617,3813.9,3813.4,3.23928226]
[1717735675255,1.57435047,3813.8,3813.5,0.784]
[1717735675435,1.57435047,3813.9,3813.7,0.784]
[1717735675647,0.55,3813.8,3813.7,0.784]
[1717735675956,0.55,3813.8,3813.7,0.91329565]
[1717735677014,2.62195,3814.0,3813.7,0.91329565]
[1717735677015,0.55,3813.9,3813.7,0.91329565]
[1717735680622,0.55,3814.0,3813.7,0.91329565]
[1717735681160,0.55,3814.1,3813.7,0.91329565]
[1717735681461,1.11668697,3814.1,3813.7,0.91329565]
[1717735681836,0.55,3814.1,3813.9,0.784]
[1717735682419,0.55,3814.1,3814.0,0.12908843]
[1717735684860,1.1166915,3814.1,3814.0,0.12908843]
[1717735685047,2.39693879,3814.1,3814.0,0.12908843]
[1717735685239,4.72233879,3814.1,3814.0,0.12908843]
[1717735685436,4.94737,3814.0,3813.5,0.784]
[1717735685755,2.12429036,3813.9,3813.5,0.784]
[1717735685928,2.52115027,3813.8,3813.5,0.784]
[1717735686126,0.55,3813.7,3813.5,0.784]
[1717735689025,0.55,3813.8,3813.6,0.12902658]
[1717735689261,0.55,3813.8,3813.5,0.784]
[1717735690261,0.55,3813.8,3813.4,0.784]
[1717735690569,0.55,3813.8,3813.6,0.784]
[1717735691225,0.55,3813.9,3813.6,0.784]
[1717735693352,0.5666915,3814.1,3813.8,0.784]
[1717735693586,0.5666915,3814.1,3814.0,0.784]
[1717735694229,7.49,3814.2,3814.0,0.784]
[1717735694772,0.55,3814.1,3814.0,0.784]
[1717735696237,7.49,3814.2,3814.0,1.09957]
[1717735698186,7.49,3814.2,3814.0,0.31557]
[1717735698356,7.49,3814.2,3814.1,0.784]
[1717735700475,4.19534427,3814.8,3814.1,0.784]
[1717735700818,0.55,3814.7,3814.2,0.12911938]
[1717735701115,0.55,3814.7,3814.1,0.784]
[1717735701278,0.55,3814.7,3814.3,0.784]
[1717735702450,2.2581,3814.6,3814.3,0.784]
[1717735702616,0.55,3814.5,3814.3,0.784]
[1717735707144,0.55,3814.6,3814.3,0.784]
[1717735708064,0.55,3814.7,3814.3,0.784]
[1717735709240,0.55,3814.7,3814.5,0.784]
[1717735711128,0.55,3814.7,3814.6,0.12894001]
[1717735714929,0.55,3815.0,3814.6,0.12894001]
[1717735715134,0.55,3815.0,3814.7,0.784]
[1717735715336,0.55,3815.0,3814.8,0.12873595]
[1717735715659,0.55,3815.0,3814.7,0.784]
[1717735715963,1.57396268,3815.3,3814.9,0.784]
[1717735716120,2.3027,3815.4,3815.1,0.784]
[1717735716121,1.57372242,3815.4,3815.1,0.784]
[1717735716322,5.07893,3815.6,3815.1,0.784]
[1717735716323,6.65265242,3815.6,3815.1,0.784]
[1717735716847,5.07893,3815.6,3815.3,0.784]
[1717735717558,2.62083,3815.6,3815.3,0.784]
[1717735717932,2.62083,3815.6,3815.5,0.784]
[1717735718144,1.57372242,3815.8,3815.5,0.784]
[1717735718346,2.4968,3815.9,3815.7,0.784]
[1717735718643,0.55,3815.8,3815.7,0.784]
[1717735719035,0.55,3815.8,3815.7,0.91240519]
[1717735720085,0.55,3815.9,3815.7,0.784]
[1717735720580,0.55,3815.9,3815.8,0.12840519]
[1717735720719,0.55,3815.9,3815.7,0.784]
[1717735720920,0.55,3815.9,3815.8,0.12840519]
[1717735721153,0.55,3815.9,3815.0,5.08171]
[1717735721376,0.55,3815.9,3815.7,0.784]
[1717735721580,1.116735,3815.9,3815.7,0.784]
[1717735722089,1.116735,3815.9,3815.8,0.12840519]
[1717735722555,1.116735,3815.9,3815.7,0.784]
[1717735722784,0.55,3815.9,3815.8,0.12840519]
[1717735722966,0.55,3815.9,3815.0,5.08171]
[1717735723169,0.55,3815.9,3815.7,0.784]
[1717735723690,0.55,3815.9,3815.8,0.12840519]
[1717735724195,0.55,3815.9,3815.7,0.784]
[1717735724496,0.55,3815.9,3815.8,0.12840519]
[1717735724813,0.55,3815.9,3815.7,0.784]
[1717735724971,0.55,3815.9,3815.8,0.12840519]
[1717735725171,0.55,3815.9,3815.7,0.784]
[1717735725372,0.55,3815.9,3815.8,0.12830013]
[1717735725586,0.55,3815.9,3815.8,0.784]
[1717735725787,0.55,3815.9,3815.7,0.784]
[1717735725992,0.55,3815.9,3815.8,0.12830013]
[1717735726205,0.55,3815.9,3815.7,0.784]
[1717735726503,0.55,3815.9,3815.8,0.12830013]
[1717735726667,1.102747,3815.9,3815.8,0.12830013]
[1717735726882,1.102747,3815.9,3815.5,0.784]
[1717735727268,1.102747,3815.9,3815.6,0.1279633]
[1717735727576,1.102747,3815.9,3815.5,0.784]
[1717735727773,2.62069,3815.8,3815.7,0.1279633]
[1717735728004,3.17069,3815.8,3815.5,0.784]
[1717735728177,0.55,3815.7,3815.5,0.784]
[1717735728377,0.55,3815.7,3815.6,0.1279633]
[1717735728722,0.55,3815.7,3815.5,0.784]
[1717735729001,0.55,3815.7,3815.6,0.1279633]
[1717735729161,0.55,3815.7,3815.5,0.784]
[1717735729359,0.55,3815.7,3815.6,0.1279633]
[1717735729707,0.55,3815.7,3815.5,0.784]
[1717735730070,0.55,3815.7,3815.6,0.1279633]
[1717735730283,0.55,3815.7,3815.5,0.784]
[1717735730600,0.55,3815.7,3815.6,0.1279633]
[1717735730765,0.55,3815.7,3815.5,0.784]
[1717735730961,0.55,3815.7,3815.6,0.1279633]
[1717735731212,2.62042,3816.2,3815.6,0.44607963]
[1717735731365,2.62042,3816.2,3815.8,0.784]
[1717735732376,0.55,3816.1,3815.8,0.784]
[1717735733198,0.55,3816.1,3815.3,2.2692]
[1717735733406,0.55,3816.1,3815.8,0.784]
[1717735734396,0.55,3816.1,3815.3,2.2692]
[1717735734606,0.55,3816.1,3815.9,0.12805599]
[1717735734783,0.55,3816.1,3815.8,0.784]
[1717735737998,0.55,3816.1,3815.7,0.784]
[1717735738186,0.55,3816.1,3815.3,2.2692]
[1717735738187,0.55,3816.1,3815.9,0.784]
[1717735739287,2.9036,3816.1,3815.3,2.2692]
[1717735739613,2.9036,3816.1,3815.8,0.784]
[1717735739801,3.66998189,3816.1,3815.8,0.784]
[1717735740211,4.23639978,3816.1,3815.8,0.784]
[1717735741182,3.47001789,3816.1,3815.8,0.784]
[1717735741588,2.9036,3816.1,3815.8,0.784]
[1717735742213,4.476981,3816.1,3815.8,0.784]
[1717735742497,2.123381,3816.1,3815.8,0.784]
[1717735742718,2.123381,3816.1,3815.3,2.2692]
[1717735742927,2.2574,3815.9,3815.0,2.3783]
[1717735743229,0.55,3815.8,3815.5,0.784]
[1717735743434,0.55,3815.8,3814.9,2.62124]
[1717735743435,0.55,3815.8,3815.7,0.784]
[1717735743760,0.55,3815.9,3815.7,0.784]
[1717735745221,2.12345835,3815.9,3815.7,0.784]
[1717735745529,2.12345835,3815.9,3815.4,2.4492]
[1717735745824,2.12345835,3815.9,3815.7,0.784]
[1717735746127,1.57345835,3815.8,3815.7,0.784]
[1717735746311,2.12345835,3815.8,3815.7,0.784]
[1717735746833,2.12346512,3815.8,3815.7,0.784]
[1717735747192,2.12346512,3815.8,3815.4,2.4492]
[1717735747393,1.57346512,3815.6,3815.5,0.784]
[1717735747600,2.12346512,3815.6,3815.5,0.91197256]
[1717735748325,0.55,3815.6,3815.5,0.91197256]
[1717735749934,2.12349805,3815.6,3815.5,0.91197256]
[1717735750936,0.55,3815.6,3815.5,0.91197256]
[1717735751440,0.55,3815.6,3815.5,0.93997256]
[1717735751837,2.12349805,3815.6,3815.5,0.93997256]
[1717735752304,0.55,3815.6,3815.5,0.93997256]
[1717735752917,2.12349805,3815.6,3815.5,0.93997256]
[1717735754355,0.55,3815.6,3815.5,0.93997256]
[1717735754668,1.5735276,3815.7,3815.5,0.93997256]
[1717735754828,0.55,3815.6,3815.5,0.93997256]
[1717735755454,0.55,3815.6,3815.5,0.15597256]
[1717735755748,2.941,3815.6,3815.5,0.15597256]
[1717735756917,2.941,3815.6,3815.5,0.93997256]
[1717735758049,4.5145276,3815.6,3815.5,0.93997256]
[1717735758936,2.1235276,3815.6,3815.5,0.93997256]
[1717735759235,2.1235276,3815.6,3815.5,0.812]
[1717735760410,2.1235276,3815.6,3815.5,0.028]
[1717735760610,2.1235276,3815.6,3815.5,0.812]
[1717735762913,0.55,3815.6,3815.5,0.812]
[1717735763116,0.55,3815.6,3815.5,0.028]
[1717735763364,2.1235276,3815.6,3815.5,0.028]
[1717735767120,0.55,3815.6,3815.5,0.028]
[1717735767421,2.12354835,3815.6,3815.5,0.028]
[1717735769276,0.55,3815.6,3815.5,0.028]
[1717735769452,2.12352695,3815.6,3815.5,0.028]
[1717735769936,0.55,3815.6,3815.5,0.028]
[1717735770457,2.12352746,3815.6,3815.5,0.028]
[1717735770956,0.55,3815.6,3815.5,0.028]
[1717735771165,1.11646993,3815.6,3815.5,0.028]
[1717735771659,2.12352746,3815.6,3815.5,0.028]
[1717735771864,0.55,3815.6,3815.5,0.028]
[1717735772050,1.11647833,3815.6,3815.5,0.028]
[1717735772425,2.12351257,3815.6,3815.5,0.028]
[1717735772956,1.11647833,3815.6,3815.5,0.028]
[1717735773437,2.12349835,3815.6,3815.5,0.028]
[1717735774527,1.11647833,3815.6,3815.5,0.028]
[1717735775359,2.68997151,3815.6,3815.5,0.028]
[1717735775565,2.12349318,3815.6,3815.5,0.028]
[1717735775763,2.12349318,3815.6,3815.5,0.1560869]
[1717735776540,2.68997151,3815.6,3815.5,0.1560869]
[1717735777058,1.11647833,3815.6,3815.5,0.1560869]
[1717735780148,1.42768014,3815.6,3815.5,0.1560869]
[1717735783588,3.92678014,3815.6,3815.5,0.1560869]
[1717735783986,3.92678014,3815.6,3815.5,0.028]
[1717735793976,1.11647833,3815.6,3815.5,0.028]
[1717735794303,0.55,3815.6,3815.5,0.028]
[1717735794502,0.55,3815.6,3815.5,0.15624447]
[1717735794877,0.55,3815.6,3815.5,0.028]
[1717735796410,2.12354067,3815.6,3815.5,0.028]
[1717735796614,2.12354067,3815.6,3815.5,0.15616104]
[1717735797523,2.123536,3815.6,3815.5,0.15616104]
[1717735798094,0.55,3815.6,3815.5,0.15616104]
[1717735798956,0.55,3815.6,3815.5,0.94016104]
[1717735806070,0.55,3815.6,3815.5,0.15616104]
[1717735806630,1.57347088,3815.7,3815.5,0.15616104]
[1717735806829,2.13992039,3815.9,3815.5,0.94016104]
[1717735807032,0.55,3815.8,3815.5,0.94016104]
[1717735807627,0.55,3815.8,3815.5,3.27626104]
[1717735808319,0.55,3815.8,3815.7,0.784]
[1717735808520,0.55,3815.8,3815.7,0.91207451]
[1717735810127,0.55,3815.8,3815.7,0.12807451]
[1717735810313,0.55,3815.8,3815.6,0.784]
[1717735810515,0.55,3815.8,3815.7,0.12807451]
[1717735810725,0.55,3815.9,3815.7,0.12807451]
[1717735811123,0.55,3815.9,3815.6,0.784]
[1717735811314,0.55,3815.9,3815.7,0.12802199]
[1717735811529,1.11644192,3815.9,3815.7,0.12802199]
[1717735811958,0.55,3815.9,3815.7,0.12802199]
[1717735815046,0.55,3816.0,3815.7,0.12802199]
[1717735815449,0.55,3816.0,3815.6,0.784]